bitfinex/quotes_BTCUSD_20221001
["timestamp","ask_amount","ask_price","bid_price","bid_amount"]
[1664642190996,0.03472465,19296.0,19295.0,2.06072992]
[1664642191462,0.03472465,19296.0,19295.0,2.12169614]
[1664642191686,0.03472465,19296.0,19295.0,2.63319183]
[1664642192151,0.03472465,19296.0,19295.0,2.59251652]
[1664642192369,0.03472465,19296.0,19295.0,2.51451652]
[1664642193018,0.03472465,19296.0,19295.0,2.59251652]
[1664642193797,0.03472465,19296.0,19295.0,2.55190353]
[1664642194235,0.03472465,19296.0,19295.0,2.51451817]
[1664642194911,0.03472465,19296.0,19295.0,1.98272379]
[1664642195134,0.03472465,19296.0,19295.0,2.06072379]
[1664642196259,0.03472465,19296.0,19295.0,1.98272379]
[1664642196934,0.03472465,19296.0,19295.0,1.56180615]
[1664642197186,0.03472465,19296.0,19295.0,2.02010915]
[1664642197891,0.03472465,19296.0,19295.0,2.06072379]
[1664642198350,0.03472465,19296.0,19295.0,1.98272379]
[1664642198798,0.02997199,19296.0,19295.0,1.98272379]
[1664642199042,0.02997199,19296.0,19295.0,1.63980615]
[1664642199263,0.02997199,19296.0,19295.0,2.02010915]
[1664642200436,0.02997199,19296.0,19295.0,1.94210915]
[1664642201173,0.02997199,19296.0,19295.0,2.76110915]
[1664642201436,0.12951,19304.0,19300.0,0.05]
[1664642201659,0.29805271,19305.0,19301.0,0.64125644]
[1664642201660,0.388517,19305.0,19301.0,0.64125644]
[1664642201891,0.388517,19305.0,19302.0,0.51173144]
[1664642202172,0.22370891,19304.0,19302.0,0.85146978]
[1664642202623,0.005,19304.0,19302.0,0.85146978]
[1664642202865,0.005,19304.0,19302.0,0.51173144]
[1664642203086,0.005,19304.0,19302.0,0.56173144]
[1664642203313,0.005,19304.0,19303.0,0.05]
[1664642203561,0.36288,19304.0,19302.0,0.56173144]
[1664642203799,0.005,19304.0,19302.0,0.56173144]
[1664642204038,0.005,19304.0,19302.0,0.51173144]
[1664642204039,0.65064197,19303.0,19302.0,0.51173144]
[1664642204270,1.41948497,19303.0,19298.0,0.388633]
[1664642204494,0.94302233,19302.0,19299.0,0.51173144]
[1664642204788,0.58514233,19302.0,19299.0,0.51173144]
[1664642205019,0.71466333,19302.0,19299.0,0.51173144]
[1664642205222,0.509824,19302.0,19299.0,0.64118144]
[1664642205456,0.509824,19302.0,19300.0,0.51173144]
[1664642205682,0.738183,19301.0,19300.0,0.51173144]
[1664642205907,0.509824,19302.0,19300.0,0.51173144]
[1664642206135,0.35788,19301.0,19300.0,0.51173144]
[1664642206362,0.509824,19302.0,19300.0,0.51173144]
[1664642206799,0.35788,19301.0,19300.0,0.51173144]
[1664642207032,0.129521,19302.0,19300.0,0.51173144]
[1664642207263,0.35788,19301.0,19300.0,0.51173144]
[1664642207492,0.129521,19302.0,19300.0,0.51173144]
[1664642207719,0.35788,19301.0,19300.0,0.51173144]
[1664642207908,0.05,19301.0,19300.0,0.51173144]
[1664642208131,0.40788,19301.0,19300.0,0.51173144]
[1664642208349,0.05,19301.0,19300.0,0.51173144]
[1664642208620,0.129521,19302.0,19300.0,0.51173144]
[1664642208841,0.40788,19301.0,19300.0,0.51173144]
[1664642209090,0.05,19301.0,19300.0,0.58673144]
[1664642210239,0.05,19301.0,19300.0,0.51173144]
[1664642210685,0.35788,19301.0,19300.0,0.51173144]
[1664642210892,0.509824,19302.0,19300.0,0.51173144]
[1664642211105,0.509824,19302.0,19300.0,0.58573144]
[1664642211106,0.35788,19301.0,19300.0,0.58573144]
[1664642211231,0.129521,19302.0,19300.0,0.58573144]
[1664642211444,0.509824,19302.0,19301.0,0.51173144]
[1664642211670,0.867704,19302.0,19301.0,0.51173144]
[1664642212716,0.487401,19302.0,19301.0,0.51173144]
[1664642213580,0.129521,19302.0,19301.0,0.51173144]
[1664642213999,0.487401,19302.0,19301.0,0.51173144]
[1664642214687,0.129521,19302.0,19301.0,0.51173144]
[1664642215363,0.487401,19302.0,19301.0,0.51173144]
[1664642217020,0.487401,19302.0,19301.0,0.56173144]
[1664642217232,0.35788,19302.0,19301.0,0.51173144]
[1664642217499,0.63130397,19303.0,19301.0,0.51173144]
[1664642217715,0.63130397,19303.0,19301.0,0.56173144]
[1664642218174,0.35788,19302.0,19301.0,0.56173144]
[1664642218410,0.63131497,19303.0,19301.0,0.56173144]
[1664642218858,0.35788,19302.0,19301.0,0.56173144]
[1664642219098,0.63131497,19303.0,19301.0,0.56173144]
[1664642219549,0.63131497,19303.0,19302.0,2.46238148]
[1664642219787,0.63131497,19303.0,19302.0,2.80211454]
[1664642220068,0.98919497,19303.0,19302.0,2.80211454]
[1664642221843,0.98919497,19303.0,19301.0,0.51173144]
[1664642222075,0.35788,19302.0,19301.0,0.51173144]
[1664642222304,0.63131397,19303.0,19301.0,0.51173144]
[1664642222537,0.24276197,19303.0,19301.0,0.51173144]
[1664642222768,0.63131397,19303.0,19301.0,0.51173144]
[1664642222978,0.63131397,19303.0,19301.0,0.56173144]
[1664642223422,0.35788,19302.0,19301.0,0.56173144]
[1664642223645,0.63131397,19303.0,19301.0,0.51173144]
[1664642223939,0.63131397,19303.0,19301.0,0.56173144]
[1664642223940,0.35788,19302.0,19301.0,0.56173144]
[1664642224210,0.63131397,19303.0,19301.0,0.56173144]
[1664642224433,0.35788,19302.0,19301.0,0.56173144]
[1664642224659,0.63131397,19303.0,19301.0,0.56173144]
[1664642224876,0.35788,19302.0,19301.0,0.56173144]
[1664642225098,0.63131397,19303.0,19301.0,0.56173144]
[1664642225331,0.35788,19302.0,19301.0,0.56173144]
[1664642225548,0.63131397,19303.0,19301.0,0.56173144]
[1664642225998,0.35788,19302.0,19301.0,0.51173144]
[1664642226218,0.63131597,19303.0,19302.0,0.00010777]
[1664642226433,0.60064197,19303.0,19302.0,0.00010777]
[1664642228267,0.98919597,19303.0,19302.0,0.00010777]
[1664642230795,0.63131597,19303.0,19302.0,0.00010777]
[1664642231016,0.98919597,19303.0,19302.0,0.00010777]
[1664642231237,0.98919597,19303.0,19302.0,3.435e-05]
[1664642231455,0.746434,19303.0,19302.0,3.435e-05]
[1664642233565,0.388554,19303.0,19302.0,3.435e-05]
[1664642233990,0.746434,19303.0,19302.0,3.435e-05]
[1664642234577,0.35788,19303.0,19302.0,0.51176579]
[1664642237517,0.388523,19304.0,19302.0,0.51176579]
[1664642237744,0.35788,19303.0,19302.0,0.51176579]
[1664642239333,0.388524,19304.0,19302.0,0.51176579]
[1664642239637,0.35788,19303.0,19302.0,0.51176579]
[1664642239859,0.768827,19304.0,19302.0,0.51176579]
[1664642239860,0.388524,19304.0,19302.0,0.51176579]
[1664642240091,0.35788,19303.0,19302.0,0.51176579]
[1664642240317,0.388524,19304.0,19302.0,0.51176579]
[1664642240584,0.35788,19303.0,19302.0,0.51176579]
[1664642240817,0.388524,19304.0,19302.0,0.51176579]
[1664642241030,0.35788,19303.0,19302.0,0.51176579]
[1664642241253,0.7191711,19305.0,19302.0,0.51176579]
[1664642241506,1.126707,19304.0,19302.0,0.51176579]
[1664642241739,0.35788,19303.0,19302.0,0.51176579]
[1664642241964,0.129513,19303.0,19302.0,0.51176579]
[1664642242193,0.487393,19303.0,19302.0,0.51176579]
[1664642246724,0.487393,19303.0,19302.0,3.435e-05]
[1664642246725,0.8210617,19303.0,19302.0,3.435e-05]
[1664642246998,1.2013647,19303.0,19302.0,3.435e-05]
[1664642247211,0.8210617,19303.0,19302.0,3.435e-05]
[1664642247697,0.74642,19303.0,19302.0,3.435e-05]
[1664642248621,0.38854,19303.0,19302.0,3.435e-05]
[1664642249535,1.13086964,19307.0,19302.0,0.62045579]
[1664642249759,0.898283,19306.0,19302.0,0.56176579]
[1664642249982,0.738183,19305.0,19302.0,0.56176579]
[1664642250213,0.35788,19304.0,19303.0,0.61173144]
[1664642250441,0.005,19306.0,19303.0,0.66173144]
[1664642250889,0.380303,19306.0,19303.0,0.66173144]
[1664642250916,1.67282839,19307.0,19303.0,0.66173144]
[1664642251119,0.005,19305.0,19303.0,0.66173144]
[1664642251349,0.35788,19304.0,19303.0,0.61173144]
[1664642251566,0.35788,19304.0,19303.0,0.66173144]
[1664642251811,0.134502,19305.0,19303.0,0.61173144]
[1664642251812,0.129502,19305.0,19303.0,0.61173144]
[1664642252034,0.35788,19304.0,19303.0,0.61173144]
[1664642252270,0.36288,19304.0,19303.0,0.61173144]
[1664642252491,0.005,19304.0,19303.0,0.61173144]
[1664642254532,0.36288,19304.0,19303.0,0.61173144]
[1664642254791,0.492386,19304.0,19303.0,0.51173144]
[1664642255678,0.134506,19304.0,19303.0,0.51173144]
[1664642255888,0.492386,19304.0,19303.0,0.51173144]
[1664642256353,0.134506,19304.0,19303.0,0.51173144]
[1664642257048,0.492386,19304.0,19303.0,0.51173144]
[1664642257268,0.134506,19304.0,19303.0,0.51173144]
[1664642257729,0.492386,19304.0,19303.0,0.51173144]
[1664642257948,0.134506,19304.0,19303.0,0.51173144]
[1664642258425,0.492386,19304.0,19303.0,0.51173144]
[1664642258646,0.134506,19304.0,19303.0,0.51173144]
[1664642259084,0.492386,19304.0,19303.0,0.51173144]
[1664642259234,0.134506,19304.0,19303.0,0.51173144]
[1664642259444,0.492386,19304.0,19303.0,0.51173144]
[1664642259676,0.134506,19304.0,19303.0,0.51173144]
[1664642260568,0.005,19304.0,19303.0,0.61173144]
[1664642261986,0.005,19304.0,19303.0,0.56173144]
[1664642262483,0.005,19304.0,19303.0,0.61173144]
[1664642262946,0.005,19304.0,19303.0,0.56173144]
[1664642263154,0.005,19304.0,19303.0,0.51173144]
[1664642263387,0.005,19304.0,19303.0,0.61173144]
[1664642263588,0.005,19304.0,19303.0,0.51173144]
[1664642265254,0.36288,19304.0,19303.0,0.51173144]
[1664642265496,0.005,19304.0,19303.0,0.51173144]
[1664642265705,0.36288,19304.0,19303.0,0.51173144]
[1664642266191,0.005,19304.0,19303.0,0.51173144]
[1664642266647,0.134506,19304.0,19303.0,0.51173144]
[1664642269533,0.492386,19304.0,19303.0,0.51173144]
[1664642269682,0.134506,19304.0,19303.0,0.51173144]
[1664642270662,0.492386,19304.0,19303.0,0.51173144]
[1664642271129,0.134506,19304.0,19303.0,0.51173144]
[1664642271818,0.00492569,19304.0,19303.0,0.61290802]
[1664642272070,0.00492569,19304.0,19303.0,0.66290802]
[1664642272292,0.20316339,19307.0,19303.0,0.79248002]
[1664642272520,0.20316339,19307.0,19304.0,0.58586178]
[1664642272521,0.33265139,19307.0,19304.0,0.58586178]
[1664642272751,0.33265139,19307.0,19306.0,0.1]
[1664642272977,0.69053139,19307.0,19306.0,0.1]
[1664642273440,0.69053139,19307.0,19305.0,0.64114444]
[1664642273441,0.69545708,19307.0,19305.0,0.64114444]
[1664642273686,0.35788,19306.0,19305.0,0.51173144]
[1664642275297,0.49229869,19306.0,19305.0,0.51173144]
[1664642276680,0.75128469,19306.0,19305.0,0.51173144]
[1664642278294,1.3168578,19306.0,19303.0,0.51173144]
[1664642278527,0.738183,19305.0,19303.0,0.51173144]
[1664642278790,0.746399,19304.0,19303.0,0.51173144]
[1664642279023,0.59335833,19304.0,19303.0,0.51173144]
[1664642279264,0.39344469,19304.0,19303.0,0.51173144]
[1664642279946,0.77374769,19304.0,19303.0,0.51173144]
[1664642280174,1.64965469,19304.0,19303.0,0.51173144]
[1664642280401,1.26935169,19304.0,19303.0,0.51173144]
[1664642280629,0.91147169,19304.0,19303.0,0.51173144]
[1664642280862,0.91147169,19304.0,19302.0,3.435e-05]
[1664642280863,0.8,19303.0,19302.0,3.435e-05]
[1664642281095,1.264474,19303.0,19302.0,3.435e-05]
[1664642281370,0.906594,19303.0,19302.0,3.435e-05]
[1664642281809,1.264474,19303.0,19302.0,3.435e-05]
[1664642282036,0.906594,19303.0,19302.0,3.435e-05]
[1664642282734,1.264474,19303.0,19302.0,3.435e-05]
[1664642282957,0.38854,19303.0,19302.0,3.435e-05]
[1664642284760,0.74642,19303.0,19302.0,3.435e-05]
[1664642285002,0.38854,19303.0,19302.0,3.435e-05]
[1664642289240,0.74642,19303.0,19302.0,3.435e-05]
[1664642289474,0.38854,19303.0,19302.0,3.435e-05]
[1664642290575,0.74642,19303.0,19302.0,3.435e-05]
[1664642290799,0.38854,19303.0,19302.0,3.435e-05]
[1664642294282,0.5439615,19303.0,19299.0,0.3039271]
[1664642294494,0.59337933,19303.0,19300.0,0.51173144]
[1664642294692,0.38854,19303.0,19300.0,0.51173144]
[1664642294914,0.768843,19303.0,19300.0,0.51173144]
[1664642295139,0.35788,19302.0,19300.0,0.51173144]
[1664642295387,0.129521,19302.0,19300.0,0.59429729]
[1664642295612,0.129521,19302.0,19301.0,0.51173144]
[1664642298820,0.768864,19302.0,19301.0,0.51173144]
[1664642299049,0.746441,19302.0,19301.0,0.51173144]
[1664642299197,0.388561,19302.0,19301.0,0.51173144]
[1664642302473,329.48826856,19301.0,19300.0,0.51173144]
[1664642302682,329.84614856,19301.0,19300.0,0.51173144]
[1664642303075,329.4880058,19301.0,19300.0,0.51173144]
[1664642303517,329.4880058,19301.0,19300.0,0.51273144]
[1664642304131,329.7480058,19301.0,19300.0,0.56273144]
[1664642304341,329.7480058,19301.0,19300.0,0.51273144]
[1664642304859,329.7480058,19301.0,19300.0,0.51173144]
[1664642305436,329.7480058,19301.0,19300.0,0.51273144]
[1664642306502,329.7480058,19301.0,19300.0,0.56273144]
[1664642306764,329.7480058,19301.0,19300.0,0.56173144]
[1664642307174,329.7480058,19301.0,19300.0,0.51173144]
[1664642307387,329.7480058,19301.0,19300.0,0.51273144]
[1664642307657,329.7480058,19301.0,19300.0,0.56273144]
[1664642308169,329.7480058,19301.0,19300.0,0.51273144]
[1664642308745,329.7480058,19301.0,19300.0,0.51173144]
[1664642309267,330.1058858,19301.0,19300.0,0.51173144]
[1664642309503,329.7480058,19301.0,19300.0,0.51273144]
[1664642310041,0.26,19301.0,19300.0,0.51273144]
[1664642310715,0.26,19301.0,19300.0,0.51173144]
[1664642311622,0.26,19301.0,19300.0,0.51273144]
[1664642312779,0.26,19301.0,19300.0,0.51173144]
[1664642313558,0.26,19301.0,19300.0,0.51273144]
[1664642314575,0.26,19301.0,19300.0,0.51173144]
[1664642315446,0.26,19301.0,19300.0,0.51273144]
[1664642316613,0.26,19301.0,19300.0,0.61173144]
[1664642317211,0.26,19301.0,19300.0,1.47040797]
[1664642317431,0.26,19301.0,19300.0,1.48580797]
[1664642318345,0.26,19301.0,19300.0,2.00394197]
[1664642318795,0.26,19301.0,19300.0,2.03655264]
[1664642319505,0.26,19301.0,19300.0,2.07755264]
[1664642320640,0.26,19301.0,19300.0,2.03655264]
[1664642321073,0.26,19301.0,19300.0,1.99594197]
[1664642321533,0.26,19301.0,19300.0,2.07494197]
[1664642322630,0.26,19301.0,19300.0,1.17329719]
[1664642322853,0.26,19301.0,19300.0,1.09429719]
[1664642323597,0.26,19301.0,19300.0,1.03373144]
[1664642323832,0.26,19301.0,19300.0,0.59513144]
[1664642324314,0.26,19301.0,19300.0,0.64513144]
[1664642324575,0.26,19301.0,19300.0,0.77466444]
[1664642325010,0.26,19301.0,19300.0,0.74866444]
[1664642325236,0.26,19301.0,19300.0,0.61913144]
[1664642325454,0.26,19301.0,19300.0,0.59513144]
[1664642326789,0.26,19301.0,19300.0,0.56913144]
[1664642327542,0.26,19301.0,19300.0,0.58113144]
[1664642328851,0.26,19301.0,19300.0,0.61913144]
[1664642329558,0.26,19301.0,19300.0,0.63113144]
[1664642329991,0.26,19301.0,19300.0,0.53113144]
[1664642330429,0.26,19301.0,19300.0,0.63113144]
[1664642330891,0.26,19301.0,19300.0,0.61913144]
[1664642331190,0.26,19301.0,19300.0,0.56913144]
[1664642331621,0.26,19301.0,19300.0,0.58613144]
[1664642332485,0.26,19301.0,19300.0,0.63613144]
[1664642332824,0.26,19301.0,19300.0,0.56913144]
[1664642333053,0.26,19301.0,19300.0,0.61913144]
[1664642333496,0.26,19301.0,19300.0,0.51913144]
[1664642333748,0.26,19301.0,19300.0,0.63113144]
[1664642333977,0.26,19301.0,19300.0,0.53113144]
[1664642334192,0.26,19301.0,19300.0,0.58113144]
[1664642334412,0.26,19301.0,19300.0,0.63113144]
[1664642334903,0.26,19301.0,19300.0,0.61913144]
[1664642335348,0.26,19301.0,19300.0,1.15929547]
[1664642335568,0.25991158,19301.0,19300.0,1.55980625]
[1664642335788,0.25991158,19301.0,19300.0,1.17629547]
[1664642336144,0.25991158,19301.0,19300.0,2.45980625]
[1664642336607,0.25991158,19301.0,19300.0,2.97794025]
[1664642336828,0.25991158,19301.0,19300.0,2.96094025]
[1664642337723,0.25991158,19301.0,19300.0,2.60342947]
[1664642337948,0.25991158,19301.0,19300.0,2.98694025]
[1664642339122,0.25991158,19301.0,19300.0,2.96094025]
[1664642339794,0.25991158,19301.0,19300.0,2.98694025]
[1664642340077,0.25991158,19301.0,19300.0,3.02755092]
[1664642340295,0.25991158,19301.0,19300.0,2.98694025]
[1664642340968,0.25991158,19301.0,19300.0,2.57742947]
[1664642341653,0.25991158,19301.0,19300.0,2.60342947]
[1664642342328,0.25991158,19301.0,19300.0,2.98694025]
[1664642343068,0.25991158,19301.0,19300.0,2.96094025]
[1664642343762,0.25991158,19301.0,19300.0,2.60342947]
[1664642344884,0.25991158,19301.0,19300.0,2.57742947]
[1664642345799,0.25991158,19301.0,19300.0,2.60342947]
[1664642346763,0.25991158,19301.0,19300.0,2.98694025]
[1664642346990,0.25991158,19301.0,19300.0,2.57742947]
[1664642347756,0.25991158,19301.0,19300.0,2.61842947]
[1664642349269,0.25991158,19301.0,19300.0,2.57742947]
[1664642349712,0.25991158,19301.0,19300.0,2.61842947]
[1664642350903,0.25991158,19301.0,19300.0,2.57742947]
[1664642351816,0.25991158,19301.0,19300.0,2.59442947]
[1664642353011,0.25991158,19301.0,19300.0,2.57742947]
[1664642353714,0.25991158,19301.0,19300.0,2.59442947]
[1664642354653,0.25991158,19301.0,19300.0,1.17629547]
[1664642354880,0.25991158,19301.0,19300.0,1.02473144]
[1664642355114,0.25991158,19301.0,19300.0,1.00773144]
[1664642355799,0.25991158,19301.0,19300.0,1.03373144]
[1664642356931,0.25991158,19301.0,19300.0,1.00773144]
[1664642357862,0.25991158,19301.0,19300.0,1.02473144]
[1664642358826,0.25991158,19301.0,19300.0,0.63613144]
[1664642359072,0.25991158,19301.0,19300.0,0.51173144]
[1664642359745,0.25991158,19301.0,19300.0,0.52373144]
[1664642360194,0.25991158,19301.0,19300.0,0.62373144]
[1664642361147,0.25991158,19301.0,19300.0,0.61173144]
[1664642361907,0.25991158,19301.0,19300.0,0.62873144]
[1664642362330,0.25991158,19301.0,19300.0,0.52873144]
[1664642362482,0.25991158,19301.0,19300.0,0.62873144]
[1664642362936,0.25991158,19301.0,19300.0,0.52873144]
[1664642363334,0.25991158,19301.0,19300.0,0.51173144]
[1664642363516,0.38943758,19301.0,19300.0,0.61173144]
[1664642363738,0.25991158,19301.0,19300.0,0.62873144]
[1664642363889,0.25991158,19301.0,19300.0,0.57873144]
[1664642364107,0.25991158,19301.0,19300.0,0.52873144]
[1664642364340,0.25991158,19301.0,19300.0,0.57873144]
[1664642364787,0.25991158,19301.0,19300.0,0.62873144]
[1664642365282,0.25991158,19301.0,19300.0,0.61173144]
[1664642365715,0.25991158,19301.0,19300.0,0.62873144]
[1664642366862,0.25991158,19301.0,19300.0,0.61173144]
[1664642367807,0.25991158,19301.0,19300.0,0.62873144]
[1664642368876,0.25991158,19301.0,19300.0,0.61173144]
[1664642369085,0.25991158,19301.0,19300.0,1.51173144]
[1664642369814,0.25991158,19301.0,19300.0,1.52873144]
[1664642370422,0.25991158,19301.0,19300.0,0.62873144]
[1664642370648,0.25991158,19301.0,19300.0,1.65826444]
[1664642370857,0.25979528,19301.0,19300.0,2.09559659]
[1664642371147,0.25979528,19301.0,19300.0,2.07859659]
[1664642371740,0.25979528,19301.0,19300.0,2.09559659]
[1664642373024,0.25979528,19301.0,19300.0,2.07859659]
[1664642373507,0.25979528,19301.0,19300.0,2.59673059]
[1664642373725,0.25979528,19301.0,19300.0,2.61373059]
[1664642374859,0.25979528,19301.0,19300.0,2.95434126]
[1664642375089,0.25979528,19301.0,19300.0,2.63734126]
[1664642375780,0.25979528,19301.0,19300.0,2.72374126]
[1664642376435,0.25979528,19301.0,19300.0,2.68313059]
[1664642376667,0.25979528,19301.0,19300.0,2.72374126]
[1664642376902,0.25979528,19301.0,19300.0,2.64474126]
[1664642377392,0.25979528,19301.0,19300.0,2.88556922]
[1664642377830,0.25979528,19301.0,19300.0,2.96456897]
[1664642378046,0.25979528,19301.0,19300.0,2.78465726]
[1664642378325,0.25979528,19301.0,19300.0,2.964569]
[1664642378539,0.25979528,19301.0,19300.0,2.72374126]
[1664642378981,0.25979528,19301.0,19300.0,2.64474126]
[1664642379863,0.25979528,19301.0,19300.0,2.68574126]
[1664642380085,0.25979528,19301.0,19300.0,2.92609118]
[1664642380795,0.25979528,19301.0,19300.0,2.92609241]
[1664642381037,0.25979528,19301.0,19300.0,2.88509241]
[1664642381247,0.25979528,19301.0,19300.0,2.64474126]
[1664642381899,0.25979528,19301.0,19300.0,2.67074126]
[1664642383010,0.25979528,19301.0,19300.0,2.64474126]
[1664642383906,0.25979528,19301.0,19300.0,2.67074126]
[1664642385062,0.25979528,19301.0,19300.0,2.64474126]
[1664642385303,0.25979528,19301.0,19300.0,2.60413059]
[1664642385758,0.25979528,19301.0,19300.0,2.63013059]
[1664642386668,0.25979528,19301.0,19300.0,2.67074126]
[1664642387094,0.25979528,19301.0,19300.0,2.64474126]
[1664642387794,0.25979528,19301.0,19300.0,2.67074126]
[1664642388246,0.25979528,19301.0,19300.0,2.63013059]
[1664642388509,0.25979528,19301.0,19300.0,2.67074126]
[1664642389208,0.25979528,19301.0,19300.0,2.64474126]
[1664642389633,0.25979528,19301.0,19300.0,4.38474126]
[1664642389912,0.25979528,19301.0,19300.0,2.64513059]
[1664642390129,0.25979528,19301.0,19300.0,2.46686544]
[1664642391153,0.25979528,19301.0,19300.0,2.42586544]
[1664642391954,0.25979528,19301.0,19300.0,2.44286544]
[1664642392427,0.25979528,19301.0,19300.0,2.48347611]
[1664642392682,0.25979528,19301.0,19300.0,2.44286544]
[1664642393130,0.25979528,19301.0,19300.0,2.46647611]
[1664642393353,0.2597009,19301.0,19300.0,2.46647611]
[1664642394040,0.2597009,19301.0,19300.0,2.46686544]
[1664642395216,0.2597009,19301.0,19300.0,2.46647611]
[1664642395438,0.2597009,19301.0,19300.0,2.42586544]
[1664642395805,0.2597009,19301.0,19300.0,2.49247611]
[1664642397075,0.2597009,19301.0,19300.0,2.46647611]
[1664642397557,0.2597009,19301.0,19300.0,2.42586544]
[1664642397755,0.2597009,19301.0,19300.0,2.46647611]
[1664642397992,0.2597009,19301.0,19300.0,2.49247611]
[1664642399119,0.2597009,19301.0,19300.0,2.46647611]
[1664642400062,0.2597009,19301.0,19300.0,2.49247611]
[1664642400292,0.2597009,19301.0,19300.0,2.76965818]
[1664642400517,0.2597009,19301.0,19300.0,2.98843684]
[1664642400751,0.2597009,19301.0,19300.0,3.06965818]
[1664642400995,0.2597009,19301.0,19300.0,2.72904543]
[1664642401450,0.2597009,19301.0,19300.0,3.00304543]
[1664642401677,0.27854045,19301.0,19300.0,3.04365818]
[1664642401903,0.27854045,19301.0,19300.0,3.08204545]
[1664642402129,0.27854045,19301.0,19300.0,2.74143684]
[1664642402803,0.27854045,19301.0,19300.0,2.54547465]
[1664642403019,0.27854045,19301.0,19300.0,2.60639065]
[1664642403244,0.27854045,19301.0,19300.0,2.70303576]
[1664642403466,0.27854045,19301.0,19300.0,3.00303576]
[1664642403784,0.27854045,19301.0,19300.0,2.70303576]
[1664642403994,0.27854045,19301.0,19300.0,3.00342655]
[1664642404209,0.27854045,19301.0,19300.0,3.04403469]
[1664642404651,0.27854045,19301.0,19300.0,2.74403469]
[1664642405333,0.27854045,19301.0,19300.0,2.46647358]
[1664642405564,0.27854045,19301.0,19300.0,2.42586544]
[1664642405794,0.33405045,19301.0,19300.0,1.42586544]
[1664642406029,0.33405045,19301.0,19300.0,0.94873144]
[1664642406689,0.27854045,19301.0,19300.0,0.94873144]
[1664642407121,0.27854045,19301.0,19300.0,0.90773144]
[1664642407882,0.27854045,19301.0,19300.0,1.00773144]
[1664642408103,0.27854045,19301.0,19300.0,1.04873144]
[1664642409247,0.27854045,19301.0,19300.0,1.00773144]
[1664642409470,0.27854045,19301.0,19300.0,0.74866444]
[1664642409925,0.27854045,19301.0,19300.0,0.78966444]
[1664642410402,0.27854045,19301.0,19300.0,0.78226444]
[1664642411296,0.27854045,19301.0,19300.0,0.74126444]
[1664642411810,0.27854045,19301.0,19300.0,0.73626444]
[1664642412035,0.27854045,19301.0,19300.0,0.77726444]
[1664642413149,0.27854045,19301.0,19300.0,0.73626444]
[1664642414057,0.27854045,19301.0,19300.0,0.77726444]
[1664642415178,0.27854045,19301.0,19300.0,0.73626444]
[1664642415930,0.27854045,19301.0,19300.0,0.77726444]
[1664642417333,0.27854045,19301.0,19300.0,0.73626444]
[1664642418007,0.27854045,19301.0,19300.0,0.77726444]
[1664642419412,0.27854045,19301.0,19300.0,0.73626444]
[1664642420073,0.27854045,19301.0,19300.0,0.80326444]
[1664642421190,0.27854045,19301.0,19300.0,0.75326444]
[1664642421413,0.27854045,19301.0,19300.0,0.73626444]
[1664642422066,0.27854045,19301.0,19300.0,0.80326444]
[1664642423364,0.27854045,19301.0,19300.0,0.73626444]
[1664642424001,0.27854045,19301.0,19300.0,0.72726444]
[1664642424295,0.27854045,19301.0,19300.0,0.77726444]
[1664642424977,1.19487064,19301.0,19300.0,0.55273144]
[1664642425212,0.99003131,19301.0,19300.0,0.51173144]
[1664642425443,1.34791131,19301.0,19300.0,0.51173144]
[1664642425694,0.99003131,19301.0,19300.0,0.51173144]
[1664642426370,1.34791131,19301.0,19300.0,0.51173144]
[1664642427071,0.99003131,19301.0,19300.0,0.51173144]
[1664642427309,1.34791131,19301.0,19300.0,0.51173144]
[1664642428662,0.96440053,19301.0,19300.0,0.51173144]
[1664642428891,1.34791131,19301.0,19300.0,0.51173144]
[1664642429820,0.96440053,19301.0,19300.0,0.51173144]
[1664642430044,0.60652053,19301.0,19300.0,0.51173144]
[1664642431022,0.96440053,19301.0,19300.0,0.51173144]
[1664642431243,0.60652053,19301.0,19300.0,0.51173144]
[1664642431921,0.96440053,19301.0,19300.0,0.51173144]
[1664642435143,1.06939053,19301.0,19300.0,0.51173144]
[1664642435365,0.71151053,19301.0,19300.0,0.51173144]
[1664642435574,0.62756272,19301.0,19300.0,0.51173144]
[1664642435801,0.68177272,19301.0,19300.0,0.51173144]
[1664642436020,1.03965272,19301.0,19300.0,0.51173144]
[1664642436483,0.68177272,19301.0,19300.0,0.51173144]
[1664642437505,1.03965272,19301.0,19300.0,0.51173144]
[1664642437718,0.68177272,19301.0,19300.0,0.51173144]
[1664642437928,1.03965272,19301.0,19300.0,0.51173144]
[1664642438145,0.68177272,19301.0,19300.0,0.51173144]
[1664642438361,1.14806484,19301.0,19300.0,0.51173144]
[1664642438610,0.62756272,19301.0,19300.0,0.51173144]
[1664642440533,0.62256272,19301.0,19300.0,0.51173144]
[1664642441649,0.56808272,19301.0,19300.0,0.51173144]
[1664642441886,0.26854045,19301.0,19300.0,0.51173144]
[1664642443144,0.26854045,19301.0,19300.0,0.56173144]
[1664642443586,0.26854045,19301.0,19300.0,0.51173144]
[1664642444708,0.26854045,19301.0,19300.0,0.61173144]
[1664642445390,0.26854045,19301.0,19300.0,0.51173144]
[1664642455324,0.62642045,19301.0,19300.0,0.51173144]
[1664642455549,0.26854045,19301.0,19300.0,0.51173144]
[1664642456683,0.62642045,19301.0,19300.0,0.51173144]
[1664642456914,0.26854045,19301.0,19300.0,0.51173144]
[1664642457697,1.01499945,19301.0,19300.0,0.51173144]
[1664642458785,1.39851023,19301.0,19300.0,0.51173144]
[1664642459008,1.01499945,19301.0,19300.0,0.51173144]
[1664642459234,0.65711945,19301.0,19300.0,0.51173144]
[1664642459466,1.04063023,19301.0,19300.0,0.51173144]
[1664642459706,1.01499945,19301.0,19300.0,0.51173144]
[1664642460418,1.39851023,19301.0,19300.0,0.51173144]
[1664642460640,1.04063023,19301.0,19300.0,0.51173144]
[1664642460875,0.65711945,19301.0,19300.0,0.51173144]
[1664642461105,1.01499945,19301.0,19300.0,0.51173144]
[1664642461609,1.39851023,19301.0,19300.0,0.51173144]
[1664642461823,1.01499945,19301.0,19300.0,0.51173144]
[1664642462738,1.39851023,19301.0,19300.0,0.51173144]
[1664642463205,1.01499945,19301.0,19300.0,0.51173144]
[1664642463662,0.39806645,19301.0,19300.0,0.66290458]
[1664642463900,0.39806645,19301.0,19300.0,0.61290458]
[1664642463901,0.26854045,19301.0,19300.0,0.61290458]
[1664642464142,0.26854045,19301.0,19300.0,0.51173144]
[1664642464853,0.14854045,19301.0,19300.0,0.51173144]
[1664642465147,0.27806645,19301.0,19300.0,0.51173144]
[1664642465379,0.27306645,19301.0,19300.0,0.51173144]
[1664642466722,0.63094645,19301.0,19300.0,0.51173144]
[1664642466950,0.27306645,19301.0,19300.0,0.51173144]
[1664642467869,0.63094645,19301.0,19300.0,0.51173144]
[1664642468086,0.27306645,19301.0,19300.0,0.51173144]
[1664642469494,0.63094645,19301.0,19300.0,0.51173144]